{"text_format":"2","workbook":"xlsx","n_sheets":2,"sheets":["Összesen","K-531-1969 kút"],"not_rendered":{"charts":0,"images":0,"macros":0,"external_links":0,"defined_names":0,"comments":0,"pivot_tables":0},"unopened":[],"bounds":{"document_bytes":16777216,"sheet_cells":100000,"run_cost":"one","rows_first":2000,"rows_last":500,"rows_between":2000,"halvings":0,"cell_chars":16384,"cell_head_chars":4096},"cells_cut":0,"cells_raw":0,"read":"whole","date_system":"1900"}

{"sheet":"Összesen","index":0,"n_rows":23,"n_cols":3,"rows_kept":23,"cut":false,"hidden":false,"merged":[[16,0,16,3],[0,0,0,3],[1,0,1,3],[2,0,2,3],[3,0,3,3],[4,0,4,3],[5,0,5,3]]}
["SZEGEDI TUDOMÁNYEGYETEM"]
[]
[]
[]
[]
[]
[null,"Kelt:"]
[]
["Szegedi Tudományegyetem                ","Készítette:"]
["Műszaki Igazgatóság                    ","Cégnév:"]
["Klinikai Üzemeltetési Iroda            ","Székhely:"]
["6725 Szeged, Tisza Lajos krt. 107.     ","Kapcsolattartó:"]
["                                       ","Elérhetőség:"]
[]
["A munka leírása:                       ",null,"                                       "]
["Dr. Bugyi István Szentesi Multidiszciplináris Centrum K-531/1969. OKK. számú kút használathoz új szivattyú telepítése"]
["Költségvetés főösszesítő"]
["Munkanem","Anyagköltség","Munkadíj"]
["K-531/1969 kút",{"$f":"'K-531-1969 kút'!H31","v":0},{"$f":"'K-531-1969 kút'!I31","v":0}]
[]
["Összesen",{"$f":"SUM(B19:B19)","v":0},{"$f":"SUM(C19:C19)","v":0}]
[]
["Mind összesen",null,{"$f":"(B21 + C21)","v":0}]

{"sheet":"K-531-1969 kút","index":1,"n_rows":31,"n_cols":9,"rows_kept":31,"cut":false,"hidden":false,"merged":[]}
["No.","Azonosító","Mennyiség","Egys.","Szöveg","Anyagár","Óradij","xAnyagár","xÓradij"]
[{"$nulls":4},"K-531/1969 kút"]
[1,"21-007-1729666",3,"m3","NAGYTÖMEGŰ FÖLDMUNKA Tereprendezés jellegű földművek létesítése, kitermeléssel, terítéssel, tömörítés nélkül, gépi erővel, 18%-os terephajlásig, I-IV. oszt. talajban, szállítás nélkül",0,0,{"$f":"(C3*F3)","v":0},{"$f":"(C3*G3)","v":0}]
[2,"21-007-1729666",3,"m3","NAGYTÖMEGŰ FÖLDMUNKA Felvonulási út rendezése kitermeléssel, terítéssel, tömörítés nélkül, gépi erővel, 18%-os terephajlásig, I-IV. oszt. talajban, szállítás nélkül",0,0,0,0]
[3,"21-003-0014722",4,"m3","MUNKAGÖDÖR ÉS MUNKAÁROK KÉSZÍTÉSE Munkaárok földkiemelése közművesített területen, kézi erővel, bármely konzisztenciájú talajban, dúcolás nélkül, 2,0 m2 szelvényig, IV. talajosztály",0,0,0,0]
[4,"21-003-0015356",4,"m3","MUNKAGÖDÖR ÉS MUNKAÁROK KÉSZÍTÉSE Földvisszatöltés munkagödörbe vagy munkaárokba, tömörítés nélkül, réteges elterítéssel, I-IV. osztályú talajban, kézi erővel, az anyag súlypontja karoláson belül, a vezeték (műtárgy) felett és mellett 50 cm vastagságig",0,0,0,0]
[5,"21-008-0016154",4,"m3","TÖMÖRÍTÉS Döngölés kézi erővel száraz, földnedves IV. fejtési talajosztályban",0,0,0,0]
[6,"10-048-4959863",25,"m2","Talajvíz elleni szigetelések, vízszintes felületen, maximum 9,0 m bemerülési mélységigegy rétegben, minimum 0,3 mm vastag, HDPE szigetelő membrán lemezzel, átlapolások forrólevegős hegesztésével CREATIGER 30A Film szövött HDPE geomembrán, erősített polietilén vízszigetelő fólia, sima/sima",0,0,0,0]
[7,"14-001-0010474",1,"kltsg","Ideiglenes szivattyú (a kiömlő vízhozam ellátására) kiépítése csapadékcsatornához",0,0,0,0]
[8,"K-tétel",1,"db","Kútfej burkolat leszerelése",0,0,0,0]
[9,"K-tétel",1,"db","Kútfej megbontása",0,0,0,0]
[10,"14-001-0010474",1,"kltsg","Feltörő víz elszivattyúzása az idéglenes szivattyúkkal",0,0,0,0]
[11,"54-000-0631884",40,"m","BONTÁSI MUNKÁK Csővezetékek bontása, idomokkal és szerelvényekkel együtt, meglévő haszoncső bontása",0,0,0,0]
[12,"05-008-4515565",8,"óra","EMELŐGÉPEK Daruval végzett munka, meglévő haszoncső feldaruzása",0,0,0,0]
[13,"05-008-4515565",8,"óra","EMELŐGÉPEK Daruval végzett munka, kútszivattyú kidaruzása",0,0,0,0]
[14,"54-016-0667250",1,"db","Grundfos SP30-14 kútszivattyú",0,0,0,0]
[15,"54-005-2069853",40,"m","Új haszoncső szerelése, földárokban,",0,0,0,0]
[16,"05-008-4515565",8,"óra","EMELŐGÉPEK Daruval végzett munka, Új kútszivattyú ledaruzása",0,0,0,0]
[17,"05-008-4515565",8,"óra","EMELŐGÉPEK Daruval végzett munka, meglévő haszoncső feldaruzása",0,0,0,0]
[18,"K-tétel",1,"db","Tömszelencék zárása",0,0,0,0]
[19,"K-tétel",1,"db","Fertőtlenítési pont kiépítése",0,0,0,0]
[20,"54-016-0667250",1,"db","Kút  fertőtlenítése túlnyomással",0,0,0,0]
[21,"K-tétel",1,"db","Kútfej lezárása",0,0,0,0]
[22,"K-tétel",1,"db","Kútfej burkolat visszaszerelése, szigetelése",0,0,0,0]
[23,"47-021-1817991",38,"m2","ACÉLFELÜLETEK MÁZOLÁSA Acélfelületek előkezelése, festéshez műhelyalapozóval, horganyzott acélszerkezeten, bádogszerkezeten",0,0,0,0]
[24,"47-021-12.9.1",38,"m2","ACÉLFELÜLETEK MÁZOLÁSA Korróziógátló alapozás horgany-, horganyzott acélszerkezeten, műgyanta kötőanyagú, oldószertartalmú festékkel",0,0,0,0]
[25,"47-021-0494411",38,"m2","ACÉLFELÜLETEK MÁZOLÁSA Acélfelületek átvonó festése horgany-, horganyzott acélszerkezetek műgyanta kötőanyagú, oldószeres festékkel Trinát zománc, magasfényű, fehér 100, EAN: 5995061119035",0,0,0,0]
[26,"21-007-1729666",3,"m3","Rekultiváció (munkagépek utáni felvonulási útvonal tereprendezéssel)",0,0,0,0]
[27,"K-tétel",1,"klt","Próbaüzem",0,0,0,0]
[]
[{"$nulls":4},"Összesen:",null,null,{"$f":"SUM(H3:H29)","v":0},{"$f":"SUM(I3:I29)","v":0}]